[Event "NJSK 2026 Jeugd A"]
[Site "Helmond, Netherlands"]
[Date "2026.04.26"]
[Round "2.9"]
[White "Ten Kate, Gustav"]
[Black "Heus, Daan"]
[Result "1/2-1/2"]
[TimeControl "90min/40moves + 30min + 30sec/move"]
[WhiteTitle "-"]
[BlackTitle "-"]
[WhiteFideId "1095781"]
[BlackFideId "40103757"]
[WhiteElo "1972"]
[BlackElo "2049"]

1. e4 {[%clk 01:30:59]} {[%emt 00:00:03]} e5 {[%clk 01:30:48]} {[%emt
00:00:09]} 2. Nf3 {[%clk 01:31:25]} {[%emt 00:00:05]} Nc6 {[%clk 01:31:14]}
{[%emt 00:00:04]} 3. Bb5 {[%clk 01:31:51]} {[%emt 00:00:03]} a6 {[%clk
01:31:27]} {[%emt 00:00:17]} 4. Ba4 {[%clk 01:32:18]} {[%emt 00:00:04]} Nf6
{[%clk 01:31:53]} {[%emt 00:00:04]} 5. O-O {[%clk 01:32:43]} {[%emt 00:00:05]}
b5 {[%clk 01:32:14]} {[%emt 00:00:09]} 6. Bb3 {[%clk 01:33:08]} {[%emt
00:00:04]} Bc5 {[%clk 01:32:23]} {[%emt 00:00:22]} 7. c3 {[%clk 01:32:48]}
{[%emt 00:00:50]} d6 {[%clk 01:32:45]} {[%emt 00:00:08]} 8. d4 {[%clk
01:32:56]} {[%emt 00:00:23]} Bb6 {[%clk 01:33:09]} {[%emt 00:00:05]} 9. Be3
{[%clk 01:32:55]} {[%emt 00:00:30]} O-O {[%clk 01:32:15]} {[%emt 00:01:24]} 10.
Nbd2 {[%clk 01:31:41]} {[%emt 00:01:44]} h6 {[%clk 01:31:11]} {[%emt 00:01:36]}
11. h3 {[%clk 01:31:36]} {[%emt 00:00:34]} Bb7 {[%clk 01:28:34]} {[%emt
00:03:09]} 12. d5 {[%clk 01:31:51]} {[%emt 00:00:14]} Ne7 {[%clk 01:27:30]}
{[%emt 00:01:33]} 13. Bxb6 {[%clk 01:32:04]} {[%emt 00:00:18]} cxb6 {[%clk
01:27:55]} {[%emt 00:00:06]} 14. a4 {[%clk 01:19:30]} {[%emt 00:13:04]} bxa4
{[%clk 01:25:38]} {[%emt 00:02:46]} 15. Bxa4 {[%clk 01:18:56]} {[%emt
00:01:05]} b5 {[%clk 01:23:47]} {[%emt 00:02:21]} 16. Bc2 {[%clk 01:19:03]}
{[%emt 00:00:23]} Ng6 {[%clk 01:19:58]} {[%emt 00:04:19]} 17. Re1 {[%clk
01:18:19]} {[%emt 00:01:13]} Nf4 {[%clk 01:18:37]} {[%emt 00:01:52]} 18. Re3
{[%clk 01:13:44]} {[%emt 00:05:05]} Kh8 {[%clk 01:08:23]} {[%emt 00:10:43]} 19.
Bd3 {[%clk 01:11:43]} {[%emt 00:02:32]} Nxd3 {[%clk 01:03:41]} {[%emt
00:05:12]} 20. Rxd3 {[%clk 01:11:54]} {[%emt 00:00:19]} Nxe4 {[%clk 00:57:11]}
{[%emt 00:07:00]} 21. Nxe4 {[%clk 01:12:01]} {[%emt 00:00:22]} f5 {[%clk
00:57:37]} {[%emt 00:00:05]} 22. Nxe5 {[%clk 01:04:52]} {[%emt 00:07:38]} dxe5
{[%emt 00:10:02]} 23. Nc5 {[%clk 01:04:59]} Qc8 {[%clk 00:28:07]} {[%emt
00:20:53]} 24. b4 {[%clk 01:05:17]} {[%emt 00:00:11]} Rd8 {[%clk 00:26:42]}
{[%emt 00:01:55]} 25. d6 {[%clk 00:50:28]} {[%emt 00:15:19]} Qc6 {[%clk
00:23:07]} {[%emt 00:04:05]} 26. Nxb7 {[%clk 00:48:16]} {[%emt 00:02:42]} Qxb7
{[%clk 00:23:32]} {[%emt 00:00:05]} 27. Qh5 {[%clk 00:46:28]} {[%emt 00:02:18]}
Qd7 {[%clk 00:21:41]} {[%emt 00:02:21]} 28. Rd5 {[%clk 00:43:24]} {[%emt
00:03:33]} Qe6 {[%clk 00:19:54]} {[%emt 00:02:18]} 29. Rad1 {[%clk 00:43:13]}
{[%emt 00:00:40]} Rd7 {[%clk 00:16:09]} {[%emt 00:04:15]} 30. Qe2 {[%clk
00:43:26]} {[%emt 00:00:17]} e4 {[%clk 00:15:08]} {[%emt 00:01:32]} 31. Qe3
{[%clk 00:43:38]} {[%emt 00:00:16]} Re8 {[%clk 00:12:56]} {[%emt 00:02:44]} 32.
R1d2 {[%clk 00:37:23]} {[%emt 00:06:45]} Kg8 {[%clk 00:09:53]} {[%emt
00:03:32]} 33. R2d4 {[%clk 00:35:12]} {[%emt 00:02:41]} Kh8 {[%clk 00:07:55]}
{[%emt 00:02:29]} 34. Rc5 {[%clk 00:34:47]} {[%emt 00:00:55]} Rxd6 {[%clk
00:07:29]} {[%emt 00:00:56]} 35. Rxd6 {[%clk 00:34:57]} {[%emt 00:00:20]} Qxd6
{[%clk 00:07:58]} {[%emt 00:00:01]} 36. Rxf5 {[%clk 00:35:02]} {[%emt
00:00:24]} Qd1+ {[%clk 00:05:35]} {[%emt 00:02:53]} 37. Kh2 {[%clk 00:35:22]}
{[%emt 00:00:10]} Qd6+ {[%clk 00:05:11]} {[%emt 00:00:55]} 38. Qg3 {[%clk
00:26:21]} {[%emt 00:09:30]} Qe6 {[%clk 00:04:31]} {[%emt 00:01:11]} 39. Rc5
{[%clk 00:25:41]} {[%emt 00:01:10]} Qf6 {[%clk 00:03:41]} {[%emt 00:01:18]} 40.
Qe3 {[%clk 00:23:28]} {[%emt 00:02:44]} Qd6+ {[%clk 00:03:17]} {[%emt
00:00:54]} 41. Qg3 {[%clk 00:22:42]} {[%emt 00:01:16]} Qf6 {[%clk 00:03:21]}
{[%emt 00:00:26]} 42. Qe3 {[%clk 00:21:01]} {[%emt 00:01:40]} 1/2-1/2

[Event "NJSK 2026 Jeugd A"]
[Site "Helmond, Netherlands"]
[Date "2026.04.27"]
[Round "3.1"]
[White "Ritzerveld, Noah"]
[Black "Smeets, Kobe"]
[Result "1-0"]
[TimeControl "90min/40moves + 30min + 30sec/move"]
[WhiteTitle "-"]
[BlackTitle "-"]
[WhiteFideId "1085760"]
[BlackFideId "1063910"]
[WhiteElo "2205"]
[BlackElo "2315"]

1. e4 {[%clk 01:30:58]} {[%emt 00:00:01]} e5 {[%clk 01:30:48]} {[%emt
00:00:12]} 2. Nf3 {[%clk 01:31:13]} {[%emt 00:00:14]} Nc6 {[%clk 01:31:06]}
{[%emt 00:00:13]} 3. Bb5 {[%clk 01:31:30]} {[%emt 00:00:13]} a6 {[%clk
01:31:19]} {[%emt 00:00:17]} 4. Ba4 {[%clk 01:31:55]} {[%emt 00:00:05]} Nge7
{[%clk 01:31:29]} {[%emt 00:00:21]} 5. O-O {[%clk 01:31:04]} {[%emt 00:01:20]}
Ng6 {[%clk 01:31:36]} {[%emt 00:00:23]} 6. d4 {[%clk 01:30:49]} {[%emt
00:00:46]} exd4 {[%clk 01:31:36]} {[%emt 00:00:29]} 7. Nxd4 {[%clk 01:30:38]}
{[%emt 00:00:42]} Nxd4 {[%clk 01:31:30]} {[%emt 00:00:35]} 8. Qxd4 {[%clk
01:30:47]} {[%emt 00:00:22]} b5 {[%clk 01:31:54]} {[%emt 00:00:06]} 9. Bb3
{[%clk 01:31:10]} {[%emt 00:00:07]} Bb7 {[%clk 01:32:20]} {[%emt 00:00:04]} 10.
Rd1 {[%clk 01:27:45]} {[%emt 00:03:55]} Qe7 {[%clk 01:32:42]} {[%emt 00:00:08]}
11. c4 {[%clk 01:24:49]} {[%emt 00:03:26]} Qd6 {[%clk 01:32:46]} {[%emt
00:00:25]} 12. Qxd6 {[%clk 01:18:32]} {[%emt 00:06:47]} Bxd6 {[%clk 01:33:09]}
{[%emt 00:00:07]} 13. cxb5 {[%clk 01:15:59]} {[%emt 00:03:04]} axb5 {[%clk
01:33:14]} {[%emt 00:00:23]} 14. Nc3 {[%clk 01:15:18]} {[%emt 00:01:12]} b4
{[%clk 01:23:33]} {[%emt 00:10:12]} 15. Nd5 {[%clk 01:08:55]} {[%emt 00:06:53]}
Ne7 {[%clk 01:11:55]} {[%emt 00:12:07]} 16. Nb6 {[%clk 01:02:44]} {[%emt
00:06:41]} Ra6 {[%clk 01:08:50]} {[%emt 00:03:36]} 17. Nc4 {[%clk 00:59:58]}
{[%emt 00:03:16]} Bc5 {[%clk 00:53:51]} {[%emt 00:15:29]} 18. Ne5 {[%clk
00:59:37]} {[%emt 00:00:56]} Rf6 {[%clk 00:53:38]} {[%emt 00:00:37]} 19. Bg5
{[%clk 00:38:05]} {[%emt 00:22:04]} Bxf2+ {[%clk 00:11:36]} {[%emt 00:42:32]}
20. Kh1 {[%clk 00:37:18]} {[%emt 00:01:17]} Re6 {[%clk 00:07:46]} {[%emt
00:04:20]} 21. Bxe6 {[%clk 00:37:35]} {[%emt 00:00:13]} dxe6 {[%clk 00:07:48]}
{[%emt 00:00:27]} 22. Bxe7 {[%clk 00:37:37]} {[%emt 00:00:29]} Kxe7 {[%clk
00:07:32]} {[%emt 00:00:46]} 23. Rd7+ {[%clk 00:38:02]} {[%emt 00:00:05]} Ke8
{[%clk 00:07:34]} {[%emt 00:00:28]} 24. Rad1 {[%clk 00:37:15]} {[%emt
00:01:17]} Bh4 {[%clk 00:07:29]} {[%emt 00:00:33]} 25. Rxc7 {[%clk 00:37:31]}
{[%emt 00:00:16]} 1-0

[Event "NJSK 2026 Jeugd A"]
[Site "Helmond, Netherlands"]
[Date "2026.04.27"]
[Round "3.2"]
[White "Ten Dam, Bram"]
[Black "Krylov, Philippe"]
[Result "1-0"]
[TimeControl "90min/40moves + 30min + 30sec/move"]
[WhiteTitle "-"]
[BlackTitle "-"]
[WhiteFideId "40104877"]
[BlackFideId "1082930"]
[WhiteElo "2363"]
[BlackElo "2183"]

1. e4 {[%clk 01:30:49]} {[%emt 00:00:02]} c5 {[%clk 01:30:41]} {[%emt
00:00:28]} 2. Nc3 {[%clk 01:31:10]} {[%emt 00:00:09]} Nc6 {[%clk 01:29:28]}
{[%emt 00:01:43]} 3. g3 {[%clk 01:29:48]} {[%emt 00:01:53]} Rb8 {[%clk
01:29:27]} {[%emt 00:00:31]} 4. a4 {[%clk 01:29:50]} {[%emt 00:00:29]} g6
{[%clk 01:22:52]} {[%emt 00:07:03]} 5. Bg2 {[%clk 01:30:11]} {[%emt 00:00:09]}
Bg7 {[%clk 01:23:08]} {[%emt 00:00:14]} 6. d3 {[%clk 01:30:36]} {[%emt
00:00:05]} d6 {[%clk 01:20:39]} {[%emt 00:03:00]} 7. Be3 {[%clk 01:30:27]}
{[%emt 00:00:39]} e6 {[%clk 01:18:56]} {[%emt 00:02:13]} 8. Qd2 {[%clk
01:30:39]} {[%emt 00:00:17]} a6 {[%clk 01:17:28]} {[%emt 00:01:58]} 9. Nge2
{[%clk 01:29:46]} {[%emt 00:01:22]} Nd4 {[%clk 01:11:57]} {[%emt 00:06:02]} 10.
O-O {[%clk 01:28:13]} {[%emt 00:02:03]} Ne7 {[%clk 01:10:13]} {[%emt 00:02:14]}
11. Nd1 {[%clk 01:24:03]} {[%emt 00:04:40]} Nec6 {[%clk 01:07:30]} {[%emt
00:03:14]} 12. Nxd4 {[%clk 01:21:42]} {[%emt 00:02:51]} Nxd4 {[%clk 01:03:14]}
{[%emt 00:04:46]} 13. f4 {[%clk 01:21:12]} {[%emt 00:00:59]} O-O {[%clk
01:03:15]} {[%emt 00:00:29]} 14. Nf2 {[%clk 01:20:49]} {[%emt 00:00:53]} Bd7
{[%clk 00:48:30]} {[%emt 00:15:15]} 15. Qd1 {[%clk 01:07:11]} {[%emt 00:14:08]}
Nc6 {[%clk 00:34:46]} {[%emt 00:14:14]} 16. c3 {[%clk 01:07:14]} {[%emt
00:00:28]} f5 {[%clk 00:32:57]} {[%emt 00:02:19]} 17. Re1 {[%clk 00:57:58]}
{[%emt 00:09:45]} Qc7 {[%clk 00:18:01]} {[%emt 00:15:26]} 18. Rc1 {[%clk
00:56:08]} {[%emt 00:02:21]} b5 {[%clk 00:13:04]} {[%emt 00:05:27]} 19. axb5
{[%clk 00:46:05]} {[%emt 00:10:32]} Rxb5 {[%clk 00:12:29]} {[%emt 00:01:05]} 20.
d4 {[%clk 00:43:29]} {[%emt 00:03:06]} fxe4 {[%clk 00:07:02]} {[%emt 00:05:58]}
21. d5 {[%clk 00:40:35]} {[%emt 00:03:24]} Na5 {[%clk 00:05:57]} {[%emt
00:01:35]} 22. dxe6 {[%clk 00:38:38]} {[%emt 00:02:27]} Bxe6 {[%clk 00:06:15]}
{[%emt 00:00:12]} 23. Nxe4 {[%clk 00:38:53]} {[%emt 00:00:14]} Rd8 {[%clk
00:03:37]} {[%emt 00:03:08]} 24. Ng5 {[%clk 00:38:45]} {[%emt 00:00:38]} Bf7
{[%clk 00:02:24]} {[%emt 00:01:44]} 25. Bd5 {[%clk 00:38:37]} {[%emt 00:00:38]}
Rd7 {[%clk 00:01:27]} {[%emt 00:01:26]} 26. Nxf7 {[%clk 00:37:46]} {[%emt
00:01:22]} Rxf7 {[%clk 00:01:50]} {[%emt 00:00:07]} 27. Bxf7+ {[%clk 00:34:24]}
{[%emt 00:03:52]} Qxf7 {[%clk 00:02:11]} {[%emt 00:00:08]} 28. Qxd6 {[%clk
00:34:38]} {[%emt 00:00:16]} Nb7 {[%clk 00:00:53]} {[%emt 00:01:48]} 29. Qxa6
{[%clk 00:33:52]} {[%emt 00:01:16]} Rxb2 {[%clk 00:01:12]} {[%emt 00:00:11]} 30.
Rb1 {[%clk 00:33:34]} {[%emt 00:00:49]} Bxc3 {[%clk 00:00:34]} {[%emt
00:01:08]} 31. Rxb2 {[%clk 00:33:53]} {[%emt 00:00:10]} Bxb2 {[%clk 00:00:54]}
{[%emt 00:00:10]} 32. Rb1 {[%clk 00:33:03]} {[%emt 00:01:19]} Qe7 {[%clk
00:00:34]} {[%emt 00:00:51]} 33. Bf2 {[%clk 00:33:00]} {[%emt 00:00:33]} Bd4
{[%clk 00:00:31]} {[%emt 00:00:33]} 34. Qxb7 {[%clk 00:33:16]} {[%emt
00:00:14]} 1-0

[Event "NJSK 2026 Jeugd A"]
[Site "Helmond, Netherlands"]
[Date "2026.04.27"]
[Round "3.3"]
[White "Terlouw, Wouter"]
[Black "Dinanath, Hrdya"]
[Result "1/2-1/2"]
[TimeControl "90min/40moves + 30min + 30sec/move"]
[WhiteTitle "-"]
[BlackTitle "-"]
[WhiteFideId "1087401"]
[BlackFideId "1087991"]
[WhiteElo "2272"]
[BlackElo "2107"]

1. d4 {[%clk 01:30:58]} {[%emt 00:00:02]} Nf6 {[%clk 01:30:56]} {[%emt
00:00:05]} 2. c4 {[%clk 01:31:22]} {[%emt 00:00:06]} c5 {[%clk 01:31:21]}
{[%emt 00:00:04]} 3. d5 {[%clk 01:31:47]} {[%emt 00:00:06]} b5 {[%clk
01:31:48]} {[%emt 00:00:03]} 4. f3 {[%clk 01:31:50]} {[%emt 00:00:27]} bxc4
{[%clk 01:31:03]} {[%emt 00:01:15]} 5. e4 {[%clk 01:32:01]} {[%emt 00:00:18]}
d6 {[%clk 01:30:40]} {[%emt 00:00:54]} 6. Bxc4 {[%clk 01:32:01]} {[%emt
00:00:29]} g6 {[%clk 01:31:05]} {[%emt 00:00:05]} 7. Ne2 {[%clk 01:32:28]}
{[%emt 00:00:03]} Bg7 {[%clk 01:31:29]} {[%emt 00:00:07]} 8. Nec3 {[%clk
01:32:54]} {[%emt 00:00:04]} h5 {[%clk 01:28:31]} {[%emt 00:03:28]} 9. O-O
{[%clk 01:31:08]} {[%emt 00:02:15]} O-O {[%clk 01:26:59]} {[%emt 00:02:02]} 10.
a4 {[%clk 01:31:08]} {[%emt 00:00:31]} a5 {[%clk 01:24:23]} {[%emt 00:03:06]}
11. Na3 {[%clk 01:27:53]} {[%emt 00:03:45]} Na6 {[%clk 01:18:34]} {[%emt
00:06:19]} 12. f4 {[%clk 01:12:57]} {[%emt 00:15:25]} Nb4 {[%clk 01:16:37]}
{[%emt 00:02:27]} 13. h3 {[%clk 00:52:21]} {[%emt 00:21:07]} e6 {[%clk
01:00:30]} {[%emt 00:16:37]} 14. f5 {[%clk 00:45:49]} {[%emt 00:07:02]} exf5
{[%clk 00:51:41]} {[%emt 00:09:19]} 15. Bg5 {[%clk 00:46:04]} {[%emt 00:00:14]}
Qe8 {[%clk 00:37:12]} {[%emt 00:15:00]} 16. Bb5 {[%clk 00:43:58]} {[%emt
00:02:36]} Qe5 {[%clk 00:36:45]} {[%emt 00:00:57]} 17. Nc4 {[%clk 00:43:30]}
{[%emt 00:00:58]} Qd4+ {[%clk 00:36:29]} {[%emt 00:00:46]} 18. Be3 {[%clk
00:43:46]} {[%emt 00:00:14]} Qxd1 {[%clk 00:36:29]} {[%emt 00:00:30]} 19. Raxd1
{[%clk 00:44:08]} Nxe4 {[%clk 00:30:20]} {[%emt 00:06:46]} 20. Nxe4 {[%clk
00:43:28]} {[%emt 00:01:11]} fxe4 {[%clk 00:30:48]} {[%emt 00:00:02]} 21. Nxd6
{[%clk 00:43:30]} {[%emt 00:00:27]} f5 {[%clk 00:16:33]} {[%emt 00:14:46]} 22.
Nxc8 {[%clk 00:36:35]} {[%emt 00:07:25]} Raxc8 {[%clk 00:16:17]} {[%emt
00:00:46]} 23. d6 {[%clk 00:36:57]} {[%emt 00:00:07]} Nc2 {[%clk 00:12:24]}
{[%emt 00:04:25]} 24. Bg5 {[%clk 00:35:57]} {[%emt 00:01:28]} Bd4+ {[%clk
00:11:59]} {[%emt 00:00:55]} 25. Kh1 {[%clk 00:35:20]} {[%emt 00:01:06]} Rcd8
{[%clk 00:07:14]} {[%emt 00:05:17]} 26. Bxd8 {[%clk 00:33:26]} {[%emt
00:02:24]} Rxd8 {[%clk 00:07:38]} {[%emt 00:00:06]} 27. Rd2 {[%clk 00:33:24]}
{[%emt 00:00:31]} Ne3 {[%clk 00:07:49]} {[%emt 00:00:19]} 28. Re1 {[%clk
00:33:40]} {[%emt 00:00:13]} Nd5 {[%clk 00:06:41]} {[%emt 00:01:40]} 29. d7
{[%clk 00:33:02]} {[%emt 00:01:08]} Nb6 {[%clk 00:06:07]} {[%emt 00:01:04]} 30.
Red1 {[%clk 00:31:51]} {[%emt 00:01:40]} e3 {[%clk 00:06:20]} {[%emt 00:00:18]}
31. Rxd4 {[%clk 00:31:31]} {[%emt 00:00:50]} cxd4 {[%clk 00:06:48]} {[%emt
00:00:02]} 32. Rxd4 {[%clk 00:27:20]} {[%emt 00:04:40]} Rxd7 {[%clk 00:06:11]}
{[%emt 00:01:09]} 33. Rxd7 {[%clk 00:27:42]} {[%emt 00:00:06]} Nxd7 {[%clk
00:06:38]} {[%emt 00:00:03]} 34. g3 {[%clk 00:26:02]} {[%emt 00:02:10]} Nc5
{[%clk 00:06:45]} {[%emt 00:00:23]} 35. Kg2 {[%clk 00:26:19]} {[%emt 00:00:11]}
g5 {[%clk 00:05:47]} {[%emt 00:01:31]} 36. Kf3 {[%clk 00:25:01]} {[%emt
00:01:45]} f4 {[%clk 00:06:09]} {[%emt 00:00:11]} 37. gxf4 {[%clk 00:24:37]}
{[%emt 00:00:53]} gxf4 {[%clk 00:06:36]} {[%emt 00:00:04]} 38. Kxf4 {[%clk
00:24:17]} {[%emt 00:00:49]} e2 {[%clk 00:06:53]} {[%emt 00:00:13]} 39. Bxe2
{[%clk 00:24:38]} {[%emt 00:00:09]} Nxa4 {[%clk 00:07:20]} {[%emt 00:00:04]} 40.
b3 {[%clk 00:24:53]} {[%emt 00:00:14]} Nc5 {[%clk 00:07:45]} {[%emt 00:00:06]}
41. Bc4+ {[%clk 00:25:16]} {[%emt 00:00:06]} Kg7 {[%clk 00:08:09]} {[%emt
00:00:05]} 42. Kg5 {[%clk 00:25:41]} {[%emt 00:00:05]} Nxb3 {[%clk 00:08:06]}
{[%emt 00:00:34]} 1/2-1/2

[Event "NJSK 2026 Jeugd A"]
[Site "Helmond, Netherlands"]
[Date "2026.04.27"]
[Round "3.4"]
[White "Zhu, Chenwu"]
[Black "Ponomarev, Ivan"]
[Result "1-0"]
[TimeControl "90min/40moves + 30min + 30sec/move"]
[WhiteTitle "-"]
[BlackTitle "-"]
[WhiteFideId "1080687"]
[BlackFideId "34411003"]
[WhiteElo "2282"]
[BlackElo "1983"]

1. e4 {[%clk 01:30:58]} {[%emt 00:00:02]} c5 {[%clk 01:30:59]} {[%emt
00:00:02]} 2. Nf3 {[%clk 01:31:26]} d6 {[%clk 01:31:23]} {[%emt 00:00:05]} 3.
d4 {[%clk 01:31:55]} {[%emt 00:00:02]} cxd4 {[%clk 01:31:50]} {[%emt 00:00:03]}
4. Nxd4 {[%clk 01:32:22]} {[%emt 00:00:03]} Nf6 {[%clk 01:32:18]} {[%emt
00:00:01]} 5. Nc3 {[%clk 01:32:52]} g6 {[%clk 01:32:37]} {[%emt 00:00:12]} 6.
Be3 {[%clk 01:32:51]} {[%emt 00:00:30]} Nc6 {[%clk 01:33:02]} {[%emt 00:00:05]}
7. f3 {[%clk 01:33:15]} {[%emt 00:00:06]} h5 {[%clk 01:33:29]} {[%emt
00:00:04]} 8. Qd2 {[%clk 01:33:42]} {[%emt 00:00:03]} Nxd4 {[%clk 01:33:54]}
{[%emt 00:00:05]} 9. Bxd4 {[%clk 01:34:11]} Bh6 {[%clk 01:34:15]} {[%emt
00:00:08]} 10. Be3 {[%clk 01:34:40]} {[%emt 00:00:02]} Bxe3 {[%clk 01:34:38]}
{[%emt 00:00:07]} 11. Qxe3 {[%clk 01:35:08]} Be6 {[%clk 01:30:45]} {[%emt
00:04:24]} 12. O-O-O {[%clk 01:33:12]} {[%emt 00:02:24]} Qa5 {[%clk 01:30:43]}
{[%emt 00:00:33]} 13. Rd4 {[%clk 01:33:38]} {[%emt 00:00:04]} a6 {[%clk
01:20:11]} {[%emt 00:11:03]} 14. Be2 {[%clk 01:33:59]} {[%emt 00:00:09]} Rc8
{[%clk 01:17:40]} {[%emt 00:03:01]} 15. a3 {[%clk 01:32:19]} {[%emt 00:02:10]}
O-O {[%clk 01:04:27]} {[%emt 00:13:43]} 16. f4 {[%clk 01:26:19]} {[%emt
00:06:30]} Bg4 {[%clk 00:26:20]} {[%emt 00:38:37]} 17. e5 {[%clk 01:17:29]}
{[%emt 00:09:20]} dxe5 {[%clk 00:16:14]} {[%emt 00:10:35]} 18. fxe5 {[%clk
01:17:23]} {[%emt 00:00:35]} Rxc3 {[%clk 00:08:51]} {[%emt 00:07:54]} 19. Qxc3
{[%clk 01:14:34]} {[%emt 00:03:20]} Qxe5 {[%clk 00:06:08]} {[%emt 00:03:13]} 20.
Bxg4 {[%clk 01:14:00]} {[%emt 00:01:03]} Nxg4 {[%clk 00:05:49]} {[%emt
00:00:50]} 21. h3 {[%clk 01:12:40]} {[%emt 00:01:50]} Nf6 {[%clk 00:06:06]}
{[%emt 00:00:12]} 22. Re1 {[%clk 01:11:40]} {[%emt 00:01:29]} Qg5+ {[%clk
00:06:18]} {[%emt 00:00:19]} 23. Qd2 {[%clk 01:07:09]} {[%emt 00:05:01]} Qc5
{[%clk 00:04:16]} {[%emt 00:02:32]} 24. b4 {[%clk 01:00:49]} {[%emt 00:06:50]}
Qc7 {[%clk 00:04:17]} {[%emt 00:00:29]} 25. Qf4 {[%clk 00:59:52]} {[%emt
00:01:27]} Qc3 {[%clk 00:02:19]} {[%emt 00:02:29]} 26. Qe3 {[%clk 00:59:57]}
{[%emt 00:00:23]} Qxe3+ {[%clk 00:01:56]} {[%emt 00:00:54]} 27. Rxe3 {[%clk
01:00:27]} e6 {[%clk 00:02:20]} {[%emt 00:00:07]} 28. Red3 {[%clk 00:59:27]}
{[%emt 00:01:29]} Nd5 {[%clk 00:02:10]} {[%emt 00:00:41]} 29. c4 {[%clk
00:59:12]} {[%emt 00:00:44]} Nb6 {[%clk 00:02:27]} {[%emt 00:00:13]} 30. Kc2
{[%clk 00:58:02]} {[%emt 00:01:40]} Kg7 {[%clk 00:02:36]} {[%emt 00:00:21]} 31.
Kb3 {[%clk 00:57:48]} {[%emt 00:00:43]} Rc8 {[%clk 00:02:46]} {[%emt 00:00:21]}
32. a4 {[%clk 00:57:38]} {[%emt 00:00:40]} e5 {[%clk 00:02:13]} {[%emt
00:01:03]} 33. Rd8 {[%clk 00:56:29]} {[%emt 00:01:40]} Rc6 {[%clk 00:00:46]}
{[%emt 00:01:57]} 34. c5 {[%clk 00:56:17]} {[%emt 00:00:41]} Nc8 {[%clk
00:01:04]} {[%emt 00:00:12]} 35. Rc3 {[%clk 00:55:28]} {[%emt 00:01:18]} e4
{[%clk 00:00:42]} {[%emt 00:00:53]} 36. b5 {[%clk 00:55:06]} {[%emt 00:00:52]}
axb5 {[%clk 00:00:48]} {[%emt 00:00:24]} 37. axb5 {[%clk 00:55:34]} {[%emt
00:00:02]} Rc7 {[%clk 00:00:55]} {[%emt 00:00:24]} 38. c6 {[%clk 00:54:56]}
{[%emt 00:01:07]} Nb6 {[%clk 00:00:37]} {[%emt 00:00:48]} 39. Kb4 {[%clk
00:54:35]} {[%emt 00:00:50]} e3 {[%clk 00:00:37]} {[%emt 00:00:32]} 40. Rxe3
{[%clk 00:52:52]} {[%emt 00:02:12]} bxc6 {[%clk 00:00:48]} {[%emt 00:00:19]} 41.
Rc3 {[%clk 00:52:58]} {[%emt 00:00:23]} 1-0